Cogmind - Beta 9.6 @@@ ROGUE MODE // 2020.08.30 @ 21:16:08 Player: Cracklepappy Result: Destroyed by D-53 Grenadier with Mini Grenade Launcher Performance ------------- Evolutions (0) 0 Regions Visited (4) 800 Robots Destroyed (21) 105 Value Destroyed (409) 409 Prototype IDs (2) 40 Alien Tech Used (0) 0 Bonus (54) 54 TOTAL SCORE: 1408 Bonus ------- Follower Combat Kills 54 Cogmind --------- Core Integrity 0/250 Matter 238/300 Energy 250/250 System Corruption 0% Temperature Cool (0) Movement Treading (200) Ox2 Location -9/Mines Parts ------- > --- POWER (1) -------- Ion Engine > --- PROPULSION (2) --- Light Treads Light Treads > --- UTILITY (2) ------ Humpback > --- WEAPON (2) ------- Assault Rifle Heavy Assault Rifle > --- INVENTORY (24) --- Ion Engine Light Angular Momentum Engine Light Treads Wheel Compact Wheel Improved Heat Sink Medium Storage Unit High-capacity Storage Unit High-capacity Storage Unit High-capacity Storage Unit Humpback High-capacity Matter Pod (0) Signal Interpreter Improved Terrain Scanner ECM Suite Assault Rifle Assault Rifle Light Cannon Grenade Launcher Rocket Launcher Mining Laser Peak State ------------ > --- POWER ------------ Ion Engine > --- PROPULSION ------- Wheel Compact Wheel > --- UTILITY ---------- Humpback > --- WEAPON ----------- Assault Rifle Rocket Launcher > --- INVENTORY -------- Ion Engine Light Angular Momentum Engine Light Treads Light Treads Light Treads Improved Heat Sink Medium Storage Unit High-capacity Storage Unit High-capacity Storage Unit High-capacity Storage Unit Humpback High-capacity Matter Pod Signal Interpreter Improved Terrain Scanner ECM Suite Assault Rifle Assault Rifle Heavy Assault Rifle Light Cannon Grenade Launcher Mining Laser [Rating: 11] Favorites ----------- Power Ion Engine Engine Ion Engine Propulsion Wheel Treads Light Treads Wheel Wheel Utility Large Storage Unit Storage Large Storage Unit Weapon Assault Rifle Ballistic Gun Assault Rifle Launcher Grenade Launcher Special Weapon Mining Laser Build | -11 -10 -10 -10 -9 ------- Run | Scr Mat Min Exi Min Slots Evolved . | . . . . . Power . | . . . . . Propulsion . | . . . . . Utility . | . . . . . Weapon . | . . . . . Parts Attached 31 | 9 12 5 1 4 Power 1 | 1 . . . . Engine 1 | 1 . . . . Core . | . . . . . Reactor . | . . . . . Propulsion 7 | 3 . 2 . 2 Treads 2 | . . . . 2 Leg . | . . . . . Wheel 5 | 3 . 2 . . Hover . | . . . . . Flight . | . . . . . Utility 6 | 2 2 1 1 . Device . | . . . . . Storage 6 | 2 2 1 1 . Processor . | . . . . . Hackware . | . . . . . Protection . | . . . . . Artifact . | . . . . . Weapon 17 | 3 10 2 . 2 Energy Gun . | . . . . . Energy Cannon . | . . . . . Ballistic Gun 10 | 3 5 1 . 1 Ballistic Cannon . | . . . . . Launcher 6 | . 4 1 . 1 Special Weapon 1 | . 1 . . . Impact Weapon . | . . . . . Slashing Weapon . | . . . . . Piercing Weapon . | . . . . . Special Melee Weapon . | . . . . . Unidentified Prototypes . | . . . . . Parts Lost 2 | . . 2 . . Power . | . . . . . Propulsion 2 | . . 2 . . Utility . | . . . . . Weapon . | . . . . . Highest Loss Streak 1 | . . 1 . . Average Slot Usage (%) 91 | . 100 98 86 85 Engine 14 | . 14 14 14 14 Treads 3 | . . . . 15 Wheel 23 | . 28 26 28 12 Storage 20 | . 28 28 15 14 Ballistic Gun 24 | . 25 16 28 27 Launcher 3 | . 1 11 . . Naked Turns . | . . . . . Heaviest Build 91 | 17 43 58 89 91 Greatest Support 40 | 26 20 26 26 40 Greatest Overweight (x) 5 | . 2 5 3 3 Average Overweight (x) 2 | . 1 2 2 2 Largest Inventory Capacity 24 | 8 16 18 24 24 Average Capacity 20 | 6 15 17 23 24 Most Carried 24 | 8 16 18 24 22 Average Carried 18 | 4 14 17 20 21 Final Capacity 24 | 8 16 18 24 24 Final Carried 22 | 8 16 18 21 22 Class Distribution -------------------- 50% | Hauler-Mutant 49% | Mutant Dominant Class ---------------- Mutant | -10/Materials Mutant | -10/Mines Hauler-Mutant | -10/Exiles Hauler-Mutant | -9/Mines Resources | -11 -10 -10 -10 -9 ----------- Run | Scr Mat Min Exi Min Matter Collected 811 | 278 174 274 . 85 Remotely . | . . . . . Salvage Created 392 | 120 139 133 . . Parts 38 | 9 14 15 . . Haulers Intercepted . | . . . . . Recyclers Shooed . | . . . . . Parts Field Recycled . | . . . . . Retrieved Matter . | . . . . . Parts Self-Destructed . | . . . . . Prevented . | . . . . . Kills | -11 -10 -10 -10 -9 ------- Run | Scr Mat Min Exi Min Combat Hostiles Destroyed 15 | . 8 7 . . Guns 4 | . 3 1 . . AOE 11 | . 5 6 . . Classes Destroyed 6 | 2 4 . . . Tunneler 3 | 3 . . . . Recycler 1 | 1 . . . . Operator 1 | . 1 . . . Watcher 1 | . 1 . . . Swarmer 9 | . 6 3 . . Grunt 6 | . 2 4 . . Best Kill Streak 3 | 3 3 3 . . Combat Bots Only 3 | . 3 3 . . Max Kills in Single Turn 2 | 1 2 2 . . Gunslinging . | . . . . . Exploded 2 | . 2 2 . . Melee . | . . . . . Uniques/NPCs Destroyed . | . . . . . Combat | -11 -10 -10 -10 -9 -------- Run | Scr Mat Min Exi Min Damage Taken 904 | . 144 243 . 517 Core 252 | . 27 55 . 170 Absorbed by Shields . | . . . . . Core Remaining (%) 100 | 100 . . . . Volleys Fired 44 | 10 19 12 . 3 Largest 2 | 2 2 2 . 2 Hottest 100 | 40 100 50 . 43 Shots Fired 84 | 20 34 24 . 6 Gun 61 | 20 22 13 . 6 Cannon . | . . . . . Launcher 19 | . 8 11 . . Special 4 | . 4 . . . Kinetic 61 | 20 22 13 . 6 Thermal 4 | . 4 . . . Explosive 19 | . 8 11 . . Electromagnetic . | . . . . . Robot Hit Streak 9 | 4 7 5 . 9 Robot Miss Streak 4 | 4 3 3 . 1 Penetration Max . | . . . . . Secondary Targets . | . . . . . Shots Hit Robots 47 | 10 18 14 . 5 Core Hits 29 | 5 13 11 . . Critical Hits . | . . . . . Critical Kills . | . . . . . Critical Parts Destroyed . | . . . . . Melee Attacks . | . . . . . Impact . | . . . . . Slashing . | . . . . . Piercing . | . . . . . Sneak Attacks . | . . . . . Combat Hostiles . | . . . . . Follow-up Attacks . | . . . . . Damage Inflicted 1237 | 133 499 542 . 63 Guns 421 | 133 154 71 . 63 Cannons . | . . . . . Explosions 816 | . 345 471 . . Melee . | . . . . . Ramming . | . . . . . Kinetic 421 | 133 154 71 . 63 Thermal . | . . . . . Explosive 816 | . 345 471 . . Electromagnetic . | . . . . . Impact . | . . . . . Slashing . | . . . . . Piercing . | . . . . . Highest Corruption . | . . . . . Average Corruption . | . . . . . Corruption Purged . | . . . . . Overload Shots . | . . . . . Overflow Damage 24 | . 20 4 . . Projectiles . | . . . . . Explosions 24 | . 20 4 . . Melee . | . . . . . Knockbacks . | . . . . . Impact . | . . . . . Kinetic . | . . . . . Secondary . | . . . . . Self-Inflicted Damage 53 | . 25 28 . . Shots 4 | . 2 2 . . Rammed . | . . . . . Targets Rammed . | . . . . . Kicked . | . . . . . Crushed . | . . . . . Highest Temperature 20 | 6 20 18 . . Average Temperature 10 | 6 12 7 . . Received Heat Transfer 135 | . 30 105 . . Siege Activations . | . . . . . Robots Corrupted . | . . . . . Combat Hostiles . | . . . . . Parts Fried . | . . . . . Impact Corruptions . | . . . . . Robots Melted . | . . . . . Combat Hostiles . | . . . . . Parts Melted . | . . . . . Heat Transferred . | . . . . . Parts Sabotaged . | . . . . . Parts Stolen . | . . . . . Parts Stripped . | . . . . . Power Chain Reactions . | . . . . . Missiles Intercepted . | . . . . . Alert | -11 -10 -10 -10 -9 ------- Run | Scr Mat Min Exi Min Peak Influence 241 | 20 205 241 . 71 Average Influence 56 | 6 62 99 . 19 Maximum Alert Level 1 | . 1 1 . . Low Security (%) 94 | 100 90 90 . 100 Level 1 5 | . 9 9 . . Level 2 . | . . . . . Level 3 . | . . . . . Level 4 . | . . . . . Level 5 . | . . . . . High Security . | . . . . . Max Security . | . . . . . Squads Dispatched 3 | . 3 . . . Investigation 2 | . 2 . . . Extermination . | . . . . . Reinforcement 1 | . 1 . . . Assault . | . . . . . Garrison . | . . . . . Intercept . | . . . . . Construction Impeded . | . . . . . Haulers Reinforced . | . . . . . Stealth | -11 -10 -10 -10 -9 --------- Run | Scr Mat Min Exi Min Distress Signals 1 | . 1 . . . Communications Jammed . | . . . . . Distress Signals . | . . . . . Times Spotted 46 | . 11 13 . 22 Peak Tracking Total 20 | . 3 3 . 20 Tactical Retreats 4 | . . 2 . 2 Traps | -11 -10 -10 -10 -9 ------- Run | Scr Mat Min Exi Min Traps Triggered 1 | . 1 . . . Indirectly . | . . . . . Trap Hack Attempts . | . . . . . Triggered . | . . . . . Disarmed . | . . . . . Reprogrammed . | . . . . . Reused . | . . . . . Traps Extracted . | . . . . . Installed . | . . . . . Triggered . | . . . . . Machines | -11 -10 -10 -10 -9 ---------- Run | Scr Mat Min Exi Min Machines Disabled 3 | . 1 2 . . Max in Single Turn 1 | . 1 1 . . Machines Sabotaged . | . . . . . Garrisons Compromised . | . . . . . Overloaded Fab Kills . | . . . . . Fab Network Shutdowns . | . . . . . Hacking | -11 -10 -10 -10 -9 --------- Run | Scr Mat Min Exi Min Machines Accessed 6 | . 5 . . 1 Terminals 6 | . 5 . . 1 Fabricators . | . . . . . Repair Stations . | . . . . . Recycling Units . | . . . . . Scanalyzers . | . . . . . Garrison Access . | . . . . . Total Hacks 19 | . 15 . . 4 Successful 7 | . 6 . . 1 Failed 12 | . 9 . . 3 Catastrophic 1 | . . . . 1 Database Lockouts . | . . . . . Manual 2 | . 1 . . 1 Terminals 19 | . 15 . . 4 Fabricators . | . . . . . Repair Stations . | . . . . . Recycling Units . | . . . . . Scanalyzers . | . . . . . Garrison Access . | . . . . . Terminal Hacks 7 | . 6 . . 1 Prototype ID Bank 1 | . 1 . . . Unreport Threat 1 | . 1 . . . Locate Traps 2 | . 2 . . . Recall Investigation 1 | . 1 . . . Zone Layout 2 | . 1 . . 1 Fabricator Hacks . | . . . . . Repair Station Hacks . | . . . . . Recycling Unit Hacks . | . . . . . Scanalyzer . | . . . . . Garrison Access Hacks . | . . . . . Unauthorized Hacks . | . . . . . Terminals . | . . . . . Fabricators . | . . . . . Repair Stations . | . . . . . Recycling Units . | . . . . . Scanalyzers . | . . . . . Garrison Access . | . . . . . Data Cores Recovered . | . . . . . Used . | . . . . . Hacking Detections 6 | . 5 . . 1 Full Trace Events 1 | . 1 . . . Feedback Events . | . . . . . Feedback Blocked . | . . . . . Robot Schematics Acquired . | . . . . . Robots Built . | . . . . . Matter . | . . . . . Time . | . . . . . Total Robot Build Rating . | . . . . . Part Schematics Acquired . | . . . . . Parts Built . | . . . . . Matter . | . . . . . Time . | . . . . . Total Part Build Rating . | . . . . . Parts Repaired . | . . . . . Time . | . . . . . Parts Recycled . | . . . . . Recycled Matter . | . . . . . Retrieved Matter . | . . . . . Retrieved Components . | . . . . . Parts Scanalyzed . | . . . . . Part Schematics Acquired . | . . . . . Parts Damaged . | . . . . . Bothacking | -11 -10 -10 -10 -9 ------------ Run | Scr Mat Min Exi Min Used RIF Installer . | . . . . . Robots Hacked . | . . . . . Non-combat . | . . . . . Combat . | . . . . . Robot Hacks Applied . | . . . . . Relay Couplers Released . | . . . . . Robots Rewired . | . . . . . Allies Hacked . | . . . . . Hacks Repelled . | . . . . . Allies | -11 -10 -10 -10 -9 -------- Run | Scr Mat Min Exi Min Total Allies 3 | . . 3 . . Largest Group 3 | . . 3 2 2 Highest-Rated Group 40 | . . 40 32 32 Highest-Rated Ally 16 | . . 16 16 16 Total Orders . | . . . . . Ally Attacks 28 | . . 19 . 9 Total Damage 312 | . . 239 . 73 Kills 4 | . . 1 . 3 Allies Corrupted . | . . . . . Allies Melted . | . . . . . Intel | -11 -10 -10 -10 -9 ------- Run | Scr Mat Min Exi Min Robot Analysis Total . | . . . . . Derelict Logs Recovered 2 | . . 1 . 1 Drone Launches . | . . . . . Drone Recoveries . | . . . . . Exploration | -11 -10 -10 -10 -9 ------------- Run | Scr Mat Min Exi Min Turns Passed 2915 | 121 578 665 825 726 Spaces Moved 2233 | 81 481 548 673 450 Core 1 | 1 . . . . Treads 184 | . . . . 184 Legs . | . . . . . Wheels 2048 | 80 481 548 673 266 Hover . | . . . . . Flight . | . . . . . Fastest Speed 50 | 50 80 100 90 120 Average Speed 116 | 85 98 102 118 152 Slowest Speed 200 | 100 100 130 120 200 Overloaded Moves . | . . . . . Propulsion Burnouts . | . . . . . Robots Hopped . | . . . . . Cave-ins Triggered . | . . . . . Exploration Rate (%) 72 | 5 89 95 88 87 Regions Visited 4 Branch Regions 3 Pre-discovered Areas 1 | . . . . 1 Known Exits Taken . | . . . . . Unknown Exits Taken 4 | 1 1 1 1 . Scrap Searched 4 | . . 3 . 1 Spaces Dug 4 | . 4 . . . Terrain Destroyed 111 | . 43 68 . . Melee . | . . . . . Projectile 4 | . 4 . . . AOE 107 | . 39 68 . . Actions | -11 -10 -10 -10 -9 --------- Run | Scr Mat Min Exi Min Total 2457 | 108 541 626 700 482 Wait 90 | . 12 51 3 24 Move 2229 | 80 480 547 672 450 Hop . | . . . . . Pick Up 47 | 8 12 7 19 1 Fast Attach 8 | 7 . . 1 . Attach 2 | . . 2 . . Detach . | . . . . . Swap 21 | 2 12 3 . 4 Drop 16 | 1 6 4 5 . Fire 44 | 10 19 12 . 3 Melee . | . . . . . Ram . | . . . . . Kick . | . . . . . Crush . | . . . . . Escape Stasis . | . . . . . Rewire . | . . . . . Trap . | . . . . . Miscellaneous . | . . . . . Route ------- -11/Scrapyard -10/Materials (discovered 4 exits: [*Mat x3] / [*Min]) -10/Mines (discovered 2 exits: [*Mat] / [*Exi]) -10/Exiles -9/Mines (discovered 2 exits: [*Mat x2]) History --------- Turn | Location | Event 21 | -11/Scrapyard | Discovered new exit (range 15) 122 | -11/Scrapyard | Entered Materials 211 | -10/Materials | Discovered new exit (range 7) 309 | -10/Materials | Build established: Mutant 330 | -10/Materials | Discovered new exit (range 10) 460 | -10/Materials | Discovered new exit (range 9) 571 | -10/Materials | Discovered new exit (range 8) 700 | -10/Materials | Entered Mines 995 | -10/Mines | Discovered new exit (range 3) 1148 | -10/Mines | Assisted by bots powering up and referring to "LRC-V3" 1270 | -10/Mines | Joined a pair of Derelicts in attacking an 0b10 outpost 1356 | -10/Mines | Deemed a non-threat by the Exiles lab entrance 1356 | -10/Mines | Discovered new exit (range 5) 1365 | -10/Mines | Entered Exiles 1365 | -10/Exiles | Accompanied by 2 allies 1392 | -10/Exiles | Met 8R-AWN 1411 | -10/Exiles | Met EX-HEX 1518 | -10/Exiles | Met EX-DEC 1674 | -10/Exiles | Met EX-BIN 1749 | -10/Exiles | Build established: Hauler-Mutant 1793 | -10/Exiles | Visited The Gauntlet 2175 | -10/Exiles | Discovered new exit (range 11) 2190 | -10/Exiles | Entered Mines 2190 | -9/Mines | Accompanied by 2 allies 2215 | -9/Mines | Met a Derelict bent on vengeance 2248 | -9/Mines | Discovered new exit (range 9) 2251 | -9/Mines | Received a Rocket Launcher from a helpful Derelict 2342 | -9/Mines | Discovered new exit (range 14) 2491 | -9/Mines | Assembled infested the area 2496 | -9/Mines | Assisted by a Guerilla fighting off Assembled 2671 | -9/Mines | Learned location of Zion (-7) 2908 | -9/Mines | Core integrity fell below 50% 2916 | -9/Mines | Core integrity fell below 20% 2916 | -9/Mines | Destroyed by D-53 Grenadier with Mini Grenade Launcher Last Messages --------------- 02498_ as-34211 suffers critical hit. 02498_ as-34211 destroyed. 02498_ K-01 Serf destroyed. 02498_ K-01 Serf collects debris. 02503_ K-01 Serf destroyed. 02505_ EE-G88(h) destroyed. 02507_ U-05 Engineer destroyed. 02514_ as-19316 destroyed. 02514_ as-87687 destroyed. 02516_ as-81125 destroyed. 02671_ Acquired derelict log, extracted data. World map updated: -7/Zion. 02689_ T-07 Excavator is excavating. 02831_ CD-WBN(g): "TASTE MY VENGEANCE!" 02865_ Searching scrap... 02865_ Found 38 Matter. 02865_ Found Flail. 02866_ Acquired 38 matter. 02875_ CD-WBN(g): "VENGEANCE!" 02910_ The unstable cave ceiling collapses. Map ----- +----------------------------------------------------+ | ????# """ #???# ###### | | ????# """ #???# | | ????# ####???# ##### | | ????# #??????# ##### | | ????# #??????# ### ### | | ????#######??????# #####?# | | ?????????######### #?????? | | ?????????# ##?????? | | ?????????# ##############??????? | | ?????????#/#???????????????????? | | ?????????# #???????????????????? | | ?????????# #???????????????????? | | ?????????# #???????????????????? | | ?????????# #???????????????????? | | ?????????# #???????????????????? | | ????####?# #???????????????????? | | ???## ### #??????????????###### | | ??## #??????????????# | | ??# ####??????????????# ## | | ??# #?????????????????# ## | | ??## ###????????##?????# ## | | ???## ##???????# ???# ## ! | | ??## ##?# ## ??# ## ! | | ??# ## ## ## | | ??# ## #### | | ??# @ d ### #??? | | ??# d #???????# #??? | | ??# ### ##???????# #??? | | ??## ##???????????### #### | | ???## ##???????????## # | | ????#######????????????# | | ?????????????##????????# % | | ????????????## ???????## | | ???????????## ??????## | | ???????????# ??#### |% | | ???????????# ## * = | | ???????????# % %=% | | ???????????# ! %! #### | | ??????????# % =%% #???? | | ??????? ## ##????? | | ??????? #?#####?????? | | ???????? #??###?????????????? | | ???????????????????????????????? | | ???????????????????????????????? | | ???????????????????????????????? | | ???????????????????????????????? | | ???????????????????????????????? | | ???????????????????????????????? | | ???????????????????????????????? | | ???????????????????????????????? | +----------------------------------------------------+ Best States ------------- Heat Dissipation 25 Energy Generation 10 Energy Capacity 250 Matter Stores 258 Matter Capacity 300 Sight Range 16 Terrain Scan Density 10 Evasion (%) 44 Recoil Reduction 2 Item Schematics ----------------- None Robot Schematics ------------------ None Fabricated ------------ Nothing Alien Tech Used ----------------- None Achievements -------------- None Challenges ------------ None Game ------ Seed SupercompositeGaussSword Manual? 0 Play Time 00:23:58 Cumulative 158.3 hours Start 2020.08.30 @ 18:17:26 End 2020.08.30 @ 21:16:08 Sessions 3 Manual Loads 0 Difficulty Rogue Special Mode None Game No. 191 Rogue 191 Adventurer 0 Explorer 0 Win Type - Total 2 Types 2/0/0/0/0/0/0 Lore% 61 Gallery% 72 Achievement% 53 Wizard Run 0 Options --------- ASCII 0 Keyboard 0 Movement Numpad Keybinds 0 Fullscreen 2 Font 24/Smallcaps Map View 76x50 Tactical HUD 1 Map Filters NONE Filters NONE Steam 1 RUN: 1dc867f9-17cf-4632-8f6c-9d0bbbc3f5c0